bitfinex-derivatives/quotes_BTCF0:USTF0_20250720
["timestamp","ask_amount","ask_price","bid_price","bid_amount"]
[1752985699981,0.36287836,118150.0,118140.0,1.6667037]
[1752985700379,0.31521836,118150.0,118140.0,1.7944892]
[1752985701081,0.19224286,118150.0,118140.0,1.7944892]
[1752985703585,0.1691839,118150.0,118140.0,1.7944892]
[1752985703776,0.1691839,118150.0,118140.0,1.6667037]
[1752985703981,0.18737833,118150.0,118140.0,1.6667037]
[1752985704474,0.18737833,118150.0,118140.0,1.5389182]
[1752985704676,0.19218833,118150.0,118140.0,1.7944892]
[1752985707491,0.18737833,118150.0,118140.0,1.7944892]
[1752985713998,0.1739939,118150.0,118140.0,1.85536118]
[1752985723001,0.1691839,118150.0,118140.0,1.85536118]
[1752985728700,0.1691839,118150.0,118140.0,1.7944892]
[1752985734607,0.1691839,118150.0,118140.0,1.7954892]
[1752985735906,0.1738239,118150.0,118140.0,1.7954892]
[1752985736611,0.1738239,118150.0,118140.0,1.85636118]
[1752985737601,0.1738239,118150.0,118140.0,1.85468118]
[1752985737806,0.1738239,118150.0,118140.0,1.85568118]
[1752985739714,0.1738239,118150.0,118140.0,1.7948092]
[1752985741125,0.1738239,118150.0,118140.0,1.85568118]
[1752985742014,0.1738239,118150.0,118140.0,1.60011018]
[1752985742214,0.1738239,118150.0,118140.0,1.85568118]
[1752985743117,0.1738239,118150.0,118140.0,1.7948092]
[1752985744117,0.1738239,118150.0,118140.0,1.1989982]
[1752985744118,0.1984939,118150.0,118140.0,1.1989982]
[1752985744418,0.1984939,118150.0,118140.0,1.4545692]
[1752985747619,0.1738239,118150.0,118140.0,1.4545692]
[1752985748120,0.1738239,118150.0,118140.0,1.7945692]
[1752985749816,0.1984939,118150.0,118140.0,1.7945692]
[1752985751119,0.1738239,118150.0,118140.0,1.7945692]
[1752985754025,0.19201759,118150.0,118140.0,1.7945692]
[1752985755725,0.21668759,118150.0,118140.0,1.7945692]
[1752985756427,0.23416759,118150.0,118140.0,1.85544118]
[1752985756725,0.2159739,118150.0,118140.0,1.85544118]
[1752985756924,0.23416947,118150.0,118140.0,1.85544118]
[1752985757427,0.1762839,118150.0,118140.0,1.85544118]
[1752985757728,0.1738239,118150.0,118140.0,1.85544118]
[1752985757921,0.19201948,118150.0,118140.0,1.85544118]
[1752985758323,0.19201948,118150.0,118140.0,1.7945692]
[1752985762128,0.18737948,118150.0,118140.0,1.7945692]
[1752985762623,0.19230948,118150.0,118140.0,1.7945692]
[1752985764029,0.1741139,118150.0,118140.0,1.85544118]
[1752985765633,0.1691839,118150.0,118140.0,1.85544118]
[1752985766235,0.1741139,118150.0,118140.0,1.85544118]
[1752985773236,0.1741139,118150.0,118140.0,1.59987018]
[1752985773539,0.1741139,118150.0,118140.0,1.85544118]
[1752985773839,0.1741139,118150.0,118140.0,1.51544118]
[1752985774039,0.1741139,118150.0,118140.0,1.87544118]
[1752985775440,0.1741139,118150.0,118140.0,1.87597118]
[1752985777749,0.1741139,118150.0,118140.0,1.51597118]
[1752985777946,0.1741139,118150.0,118140.0,1.83597118]
[1752985780748,0.1741139,118150.0,118140.0,1.26040018]
[1752985781050,0.1741139,118150.0,118140.0,1.84597118]
[1752985781247,0.1741139,118150.0,118140.0,1.87597118]
[1752985781447,0.1741139,118150.0,118140.0,1.26040018]
[1752985781646,0.1741139,118150.0,118140.0,1.82597118]
[1752985781848,0.1741139,118150.0,118140.0,1.25936018]
[1752985782048,0.1741139,118150.0,118140.0,1.87493118]
[1752985782752,0.1741139,118150.0,118140.0,1.87489118]
[1752985782949,0.1741139,118150.0,118140.0,1.28877118]
[1752985783150,0.1741139,118150.0,118140.0,1.87489118]
[1752985783752,0.1741139,118150.0,118140.0,1.28877118]
[1752985784149,0.1741139,118150.0,118140.0,1.87485118]
[1752985784650,0.1741139,118150.0,118140.0,1.28877118]
[1752985785150,0.1741139,118150.0,118140.0,1.87485118]
[1752985786849,0.1741139,118150.0,118140.0,1.51405118]
[1752985787048,0.1741139,118150.0,118140.0,2.23565118]
[1752985787950,0.00493,118150.0,118140.0,2.23565118]
[1752985794964,0.00493,118150.0,118140.0,2.25086918]
[1752985795860,0.00493,118150.0,118140.0,1.99529818]
[1752985796066,0.00493,118150.0,118140.0,2.25086918]
[1752985797567,0.00493,118150.0,118140.0,1.99529818]
[1752985797761,0.00493,118150.0,118140.0,2.25086918]
[1752985798066,0.1741139,118150.0,118140.0,1.99529818]
[1752985798366,0.1741139,118150.0,118140.0,2.25086918]
[1752985800269,0.00493,118150.0,118140.0,2.25086918]
[1752985804073,0.00493,118150.0,118140.0,2.2356454]
[1752985807271,0.00493,118150.0,118140.0,2.2351154]
[1752985809676,0.1741139,118150.0,118140.0,2.2351154]
[1752985810679,0.1741139,118150.0,118140.0,1.9795444]
[1752985810981,0.1741139,118150.0,118140.0,2.2351154]
[1752985814084,0.1741139,118150.0,118140.0,2.25033918]
[1752985817890,0.1741139,118150.0,118140.0,1.52873918]
[1752985818087,0.1741139,118150.0,118140.0,2.25033918]
[1752985820787,0.1741139,118150.0,118140.0,1.89033918]
[1752985820987,0.1741139,118150.0,118140.0,2.20033918]
[1752985821486,0.1741139,118150.0,118140.0,1.61425918]
[1752985821687,0.1741139,118150.0,118140.0,2.19965918]
[1752985823990,0.1741139,118150.0,118140.0,1.88965918]
[1752985824191,0.1741139,118150.0,118140.0,2.26965918]
[1752985825491,0.1741139,118150.0,118140.0,1.88965918]
[1752985825695,0.1741139,118150.0,118140.0,2.23965918]
[1752985826194,0.1741139,118150.0,118140.0,1.88965918]
[1752985826493,0.1741139,118150.0,118140.0,2.22965918]
[1752985827894,0.1741139,118150.0,118140.0,1.88965918]
[1752985828199,0.1741139,118150.0,118140.0,1.63408818]
[1752985828393,0.1741139,118150.0,118140.0,2.21965918]
[1752985829392,0.1741139,118150.0,118140.0,1.63408818]
[1752985829694,0.1741139,118150.0,118140.0,2.21965918]
[1752985831796,0.1741139,118150.0,118140.0,1.49805918]
[1752985831997,0.1741139,118150.0,118140.0,2.21965918]
[1752985833098,0.1741139,118150.0,118140.0,1.88965918]
[1752985833292,0.1741139,118150.0,118140.0,2.23965918]
[1752985834899,0.1741139,118150.0,118140.0,1.51805918]
[1752985835099,0.1741139,118150.0,118140.0,2.23965918]
[1752985836403,0.1741139,118150.0,118140.0,1.88965918]
[1752985836703,0.1741139,118150.0,118140.0,2.23965918]
[1752985844003,0.1741139,118150.0,118140.0,2.30047796]
[1752985844204,0.1741139,118150.0,118140.0,2.22438798]
[1752985850912,0.1741139,118150.0,118140.0,1.50278798]
[1752985851210,0.1741139,118150.0,118140.0,2.22438798]
[1752985852914,0.1741139,118150.0,118140.0,1.50278798]
[1752985853113,0.1741139,118150.0,118140.0,2.22438798]
[1752985854016,0.1741139,118150.0,118140.0,2.1635692]
[1752985854217,0.1741139,118150.0,118140.0,2.23965918]
[1752985867224,0.1741139,118150.0,118140.0,1.98408818]
[1752985867424,0.1741139,118150.0,118140.0,2.23965918]
[1752985870727,0.1741139,118150.0,118140.0,1.98408818]
[1752985870921,0.1741139,118150.0,118140.0,2.23965918]
[1752985871431,0.1691839,118150.0,118140.0,2.23965918]
[1752985872728,0.1691839,118150.0,118140.0,1.98408818]
[1752985872923,0.1691839,118150.0,118140.0,2.1635692]
[1752985874329,0.1691839,118150.0,118140.0,2.1640992]
[1752985874529,0.1738339,118150.0,118140.0,2.1640992]
[1752985874734,0.1738339,118150.0,118140.0,2.2918847]
[1752985874931,0.1738339,118150.0,118140.0,2.1640992]
[1752985878234,0.00465,118150.0,118140.0,2.1640992]
[1752985878529,0.00465,118150.0,118140.0,1.9085282]
[1752985878731,0.00465,118150.0,118140.0,2.1640992]
[1752985879936,0.00465,118150.0,118140.0,1.5786992]
[1752985880434,0.00465,118150.0,118140.0,2.1632192]
[1752985880637,0.00465,118150.0,118140.0,1.9076482]
[1752985880834,0.00465,118150.0,118140.0,2.1632192]
[1752985881034,0.1738339,118150.0,118140.0,1.98373818]
[1752985881335,0.1738339,118150.0,118140.0,1.65478918]
[1752985881531,0.1738339,118150.0,118140.0,2.23930918]
[1752985882535,0.00465,118150.0,118140.0,2.23930918]
[1752985883636,0.00465,118150.0,118140.0,1.65478918]
[1752985883837,0.00465,118150.0,118140.0,2.23926918]
[1752985884838,0.1738339,118150.0,118140.0,1.98369818]
[1752985885040,0.1738339,118150.0,118140.0,2.23926918]
[1752985885240,0.00465,118150.0,118140.0,2.23926918]
[1752985886041,0.00465,118150.0,118140.0,1.98369818]
[1752985886340,0.00465,118150.0,118140.0,2.36705468]
[1752985887937,0.00465,118150.0,118140.0,2.23926918]
[1752985888937,0.02699,118160.0,118150.0,0.1691839]
[1752985889242,0.00464,118160.0,118150.0,1.31566711]
[1752985890043,0.00464,118160.0,118150.0,1.31666711]
[1752985890743,0.00464,118160.0,118150.0,1.06109611]
[1752985890942,0.00464,118160.0,118150.0,1.31666711]
[1752985891441,0.00464,118170.0,118160.0,0.2486896]
[1752985891641,0.00464,118170.0,118160.0,1.82122557]
[1752985891943,0.4672097,118190.0,118180.0,0.248661]
[1752985892144,0.35761243,118190.0,118180.0,0.3764465]
[1752985892341,0.44311303,118190.0,118180.0,0.7372465]
[1752985892546,0.31532753,118190.0,118180.0,0.7372465]
[1752985892841,0.31532753,118190.0,118180.0,1.33137088]
[1752985893451,0.31732753,118190.0,118180.0,1.45915638]
[1752985894144,0.31732753,118190.0,118180.0,1.20358538]
[1752985894345,0.44511303,118190.0,118180.0,1.20358538]
[1752985894539,0.31732753,118190.0,118180.0,1.45915638]
[1752985894739,0.44511303,118190.0,118180.0,1.45915638]
[1752985894940,0.32132753,118190.0,118180.0,1.83915638]
[1752985895141,0.32132753,118190.0,118180.0,1.82915638]
[1752985895445,0.32132753,118190.0,118180.0,1.45915638]
[1752985895639,0.31932753,118190.0,118180.0,1.45915638]
[1752985895848,0.31832753,118190.0,118180.0,1.20358538]
[1752985896043,0.31832753,118190.0,118180.0,1.45915638]
[1752985896846,0.31832753,118190.0,118180.0,1.20358538]
[1752985897342,0.29507753,118190.0,118180.0,1.83915638]
[1752985897741,0.29507753,118190.0,118180.0,1.20358538]
[1752985897939,0.29507753,118190.0,118180.0,1.83915638]
[1752985899543,0.29507753,118190.0,118180.0,1.20358538]
[1752985899944,0.29507753,118190.0,118180.0,1.78915638]
[1752985900952,0.29507753,118190.0,118180.0,1.45915638]
[1752985901850,0.31832753,118190.0,118180.0,1.45915638]
[1752985902656,0.31832753,118190.0,118180.0,1.20358538]
[1752985902952,0.31832753,118190.0,118180.0,1.45915638]
[1752985903451,0.31832753,118190.0,118180.0,1.20358538]
[1752985903653,0.31832753,118190.0,118180.0,1.45915638]
[1752985904048,0.3001393,118190.0,118180.0,1.20358538]
[1752985904348,0.3001393,118190.0,118180.0,1.45915638]
[1752985906053,0.3001393,118190.0,118180.0,1.20358538]
[1752985906256,0.2190593,118190.0,118180.0,1.80915638]
[1752985907948,0.2190593,118190.0,118180.0,1.45915638]
[1752985908144,0.2190593,118190.0,118180.0,1.81915638]
[1752985908554,0.2190593,118190.0,118180.0,1.56358538]
[1752985908754,0.2190593,118190.0,118180.0,1.45915638]
[1752985909253,0.2180593,118190.0,118180.0,1.79915638]
[1752985909956,0.2160593,118190.0,118180.0,1.79915638]
[1752985910155,0.2170593,118190.0,118180.0,1.79915638]
[1752985911257,0.2170593,118190.0,118180.0,1.77915638]
[1752985911456,0.2170593,118190.0,118180.0,1.78915638]
[1752985912461,0.2417293,118190.0,118180.0,1.78915638]
[1752985912958,0.2597593,118190.0,118180.0,1.80915638]
[1752985913555,0.2597593,118190.0,118180.0,1.45915638]
[1752985913960,0.2597593,118190.0,118180.0,1.83915638]
[1752985917761,0.2755493,118190.0,118180.0,1.83915638]
[1752985918458,0.2755493,118190.0,118180.0,1.20358538]
[1752985918664,0.2597593,118190.0,118180.0,1.80915638]
[1752985918960,0.2440493,118190.0,118180.0,1.80915638]
[1752985920263,0.26220952,118190.0,118180.0,1.80915638]
[1752985921855,0.26220952,118190.0,118180.0,1.45915638]
[1752985922053,0.26220952,118190.0,118180.0,1.53358538]
[1752985922264,0.26220952,118190.0,118180.0,1.79915638]
[1752985923062,0.23753952,118190.0,118180.0,1.20358538]
[1752985923272,0.23521952,118190.0,118180.0,1.81915638]
[1752985923492,0.23521952,118190.0,118180.0,1.45915638]
[1752985923665,0.23521952,118190.0,118180.0,1.81915638]
[1752985923666,0.2124193,118190.0,118180.0,1.81915638]
[1752985923968,0.2124193,118190.0,118180.0,1.78915638]
[1752985924169,0.2124193,118190.0,118180.0,1.45915638]
[1752985924370,0.2124193,118190.0,118180.0,1.83915638]
[1752985924662,0.2124193,118190.0,118180.0,1.45915638]
[1752985924863,0.2124193,118190.0,118180.0,1.77915638]
[1752985925068,0.18830296,118190.0,118180.0,1.20358538]
[1752985925361,0.1701361,118190.0,118180.0,1.78915638]
[1752985925768,0.001,118190.0,118180.0,1.84996135]
[1752985925957,0.001,118190.0,118180.0,1.78915638]
[1752985926561,0.1701267,118190.0,118180.0,1.84996135]
[1752985928875,0.1701267,118190.0,118180.0,1.97774685]
[1752985929063,0.1701267,118190.0,118180.0,1.84996135]
[1752985930573,0.001,118190.0,118180.0,1.97774685]
[1752985932578,0.001,118190.0,118180.0,1.59439035]
[1752985932774,0.001,118190.0,118180.0,1.97774685]
[1752985934472,0.001,118190.0,118180.0,1.64774685]
[1752985934670,0.001,118190.0,118180.0,2.02774685]
[1752985935074,0.001,118190.0,118180.0,1.64774685]
[1752985935279,0.001,118190.0,118180.0,1.98774685]
[1752985935479,0.1701267,118190.0,118180.0,1.64774685]
[1752985935679,0.001,118190.0,118180.0,1.98774685]
[1752985936378,0.0058,118190.0,118180.0,1.98774685]
[1752985937882,0.0058,118190.0,118180.0,1.64774685]
[1752985938087,0.0058,118190.0,118180.0,1.96774685]
[1752985938383,0.0058,118190.0,118180.0,1.99774685]
[1752985938579,0.0058,118190.0,118180.0,1.26439035]
[1752985938884,0.0058,118190.0,118180.0,1.96774685]
[1752985939279,0.001,118190.0,118180.0,1.26439035]
[1752985939479,0.001,118190.0,118180.0,1.97774685]
[1752985940986,0.00599,118190.0,118180.0,1.97774685]
[1752985941484,0.00599,118190.0,118180.0,2.00774685]
[1752985942586,0.1751167,118190.0,118180.0,1.29428135]
[1752985942884,0.2573567,118190.0,118180.0,1.84951638]
[1752985943080,0.2347167,118190.0,118180.0,1.47004638]
[1752985943280,0.2347167,118190.0,118180.0,1.85004638]
[1752985943886,0.2182767,118190.0,118180.0,1.85004638]
[1752985944186,0.2182767,118190.0,118180.0,1.27528035]
[1752985944386,0.2182767,118190.0,118180.0,1.91085135]
[1752985944890,0.2182767,118190.0,118180.0,1.53085135]
[1752985945087,0.2182767,118190.0,118180.0,1.87085135]
[1752985945284,0.15550491,118210.0,118200.0,0.2004424]
[1752985945486,0.3536823,118220.0,118210.0,0.2569681]
[1752985945788,0.3536823,118220.0,118210.0,0.7455536]
[1752985946402,0.3114083,118220.0,118210.0,0.7455536]
[1752985947188,0.3114083,118220.0,118210.0,0.6177681]
[1752985947388,0.3163983,118220.0,118210.0,0.7455536]
[1752985947687,0.3438583,118220.0,118210.0,0.6177681]
[1752985947889,0.3458583,118220.0,118210.0,0.7455536]
[1752985948086,0.4736438,118220.0,118210.0,0.7455536]
[1752985949586,0.3458583,118220.0,118210.0,0.7455536]
[1752985949786,0.4736438,118220.0,118210.0,0.7455536]
[1752985950389,0.3458583,118220.0,118210.0,0.7455536]
[1752985950593,0.4736438,118220.0,118210.0,0.7455536]
[1752985950890,0.4736438,118220.0,118210.0,0.6177681]
[1752985951086,0.3458583,118220.0,118210.0,0.7455536]
[1752985951288,0.4736438,118220.0,118210.0,0.7455536]
[1752985952893,0.3458583,118220.0,118210.0,0.7455536]
[1752985953192,0.4736438,118220.0,118210.0,0.7455536]
[1752985953601,0.3458583,118220.0,118210.0,0.7455536]
[1752985953795,0.4736438,118220.0,118210.0,0.7455536]
[1752985954089,0.3458583,118220.0,118210.0,0.6177681]
[1752985954394,0.3458583,118220.0,118210.0,0.7455536]
[1752985954594,0.4736438,118220.0,118210.0,0.7455536]
[1752985957495,0.49175618,118220.0,118210.0,0.6177681]
[1752985957793,0.49175618,118220.0,118210.0,0.7455536]
[1752985958595,0.36397068,118220.0,118210.0,0.7455536]
[1752985958795,0.49175618,118220.0,118210.0,0.7455536]
[1752985959491,0.49175618,118220.0,118210.0,0.44867]
[1752985959795,0.85255618,118220.0,118210.0,0.8057055]
[1752985959996,0.85255618,118220.0,118210.0,0.67792]
[1752985960190,0.98034168,118220.0,118210.0,0.8057055]
[1752985960387,0.49175618,118220.0,118210.0,0.8057055]
[1752985960696,0.49175618,118220.0,118210.0,0.67792]
[1752985961196,0.49175618,118220.0,118210.0,0.8055055]
[1752985961394,0.49175618,118220.0,118210.0,0.0832]
[1752985961699,0.49175618,118220.0,118210.0,0.2109855]
[1752985963094,0.49175618,118220.0,118210.0,0.1677455]
[1752985963396,0.49175618,118220.0,118210.0,0.1923655]
[1752985963597,0.49175618,118220.0,118210.0,0.2086755]
[1752985964592,0.49175618,118220.0,118210.0,0.08089]
[1752985964796,0.49175618,118220.0,118210.0,0.2086755]
[1752985965096,0.49175618,118220.0,118210.0,0.2092055]
[1752985966218,0.36397068,118220.0,118210.0,0.2092055]
[1752985966399,0.49175618,118220.0,118210.0,0.2092055]
[1752985966600,0.36397068,118220.0,118210.0,0.3806136]
[1752985966801,0.49175618,118220.0,118210.0,0.3806136]
[1752985967002,0.36397068,118220.0,118210.0,0.7414136]
[1752985967202,0.4736438,118220.0,118210.0,0.7414136]
[1752985967401,0.3458583,118220.0,118210.0,0.7414136]
[1752985967603,0.49180221,118220.0,118210.0,0.7414136]
[1752985967804,0.36401671,118220.0,118210.0,0.7414136]
[1752985968004,0.49180221,118220.0,118210.0,0.7414136]
[1752985968203,0.49180221,118220.0,118210.0,0.5723155]
[1752985968905,0.49180221,118220.0,118210.0,0.7414136]
[1752985969800,0.49180221,118220.0,118210.0,0.5723155]
[1752985970201,0.36401671,118220.0,118210.0,0.5723155]
[1752985970507,0.49180221,118220.0,118210.0,0.5723155]
[1752985970696,0.49180221,118220.0,118210.0,0.08373]
[1752985970905,0.2569724,118200.0,118190.0,0.05488]
[1752985971198,0.5125434,118200.0,118190.0,0.1826655]
[1752985971405,0.27513441,118200.0,118190.0,0.1826655]
[1752985971602,0.53070541,118200.0,118190.0,0.05488]
[1752985971801,0.2033567,118190.0,118180.0,1.02691438]
[1752985972107,0.2033567,118190.0,118180.0,0.79389988]
[1752985972108,0.3847722,118190.0,118180.0,0.79389988]
[1752985972307,0.3847722,118190.0,118180.0,0.19353988]
[1752985972800,0.3847722,118190.0,118180.0,0.21647988]
[1752985973008,0.2569867,118190.0,118180.0,0.08869438]
[1752985973208,0.2569867,118190.0,118180.0,0.08969438]
[1752985973802,0.42713421,118190.0,118180.0,0.03329438]
[1752985974006,0.42713421,118190.0,118180.0,0.03429438]
[1752985974410,0.42713421,118190.0,118180.0,0.002]
[1752985974705,0.78793421,118190.0,118180.0,0.002]
[1752985975299,0.6177867,118190.0,118180.0,0.002]
[1752985980613,0.6177867,118190.0,118180.0,0.02585]
[1752985980806,0.2569867,118190.0,118180.0,0.02585]
[1752985982111,0.42713421,118190.0,118180.0,0.02585]
[1752985983415,0.42713421,118190.0,118180.0,0.05688]
[1752985983711,0.2569867,118190.0,118180.0,0.07982]
[1752985987117,0.6177867,118190.0,118180.0,0.07982]
[1752985988217,0.2569867,118190.0,118180.0,0.07982]
[1752985994924,0.38460283,118190.0,118180.0,0.20743613]
[1752985999334,0.2569867,118190.0,118180.0,0.20743613]
[1752985999532,0.38460283,118190.0,118180.0,0.20743613]
[1752986001133,0.2569867,118190.0,118180.0,0.07982]
[1752986001428,0.40280916,118190.0,118180.0,0.20743613]
[1752986002034,0.27519303,118190.0,118180.0,0.20743613]
[1752986002234,0.40280916,118190.0,118180.0,0.37657713]
[1752986002534,0.40280916,118190.0,118180.0,0.20743613]
[1752986003434,0.40280916,118190.0,118180.0,0.07982]
[1752986003733,0.76360916,118190.0,118180.0,0.20743613]
[1752986004937,0.40280916,118190.0,118180.0,0.20743613]
[1752986005335,0.27519303,118190.0,118180.0,0.37657713]
[1752986005530,0.40280916,118190.0,118180.0,0.37657713]
[1752986005836,0.27519303,118190.0,118180.0,0.37657713]
[1752986006034,0.40280916,118190.0,118180.0,0.37657713]
[1752986006736,0.40280916,118190.0,118180.0,0.20743613]
[1752986007035,0.40280916,118190.0,118180.0,0.37657713]
[1752986007943,0.40280916,118190.0,118180.0,0.20743613]
[1752986008238,0.40280916,118190.0,118180.0,0.37657713]
[1752986008437,0.27519303,118190.0,118180.0,0.37657713]
[1752986008646,0.40280916,118190.0,118180.0,0.37657713]
[1752986009032,0.40280916,118190.0,118180.0,0.20743613]
[1752986009537,0.27519303,118190.0,118180.0,0.51139326]
[1752986009838,0.27519303,118190.0,118180.0,0.87219326]
[1752986011837,0.2569867,118190.0,118180.0,0.87219326]
[1752986012039,0.2751981,118190.0,118180.0,0.87219326]
[1752986012339,0.27519723,118190.0,118180.0,0.87219326]
[1752986013434,0.2569867,118190.0,118180.0,0.87219326]
[1752986013635,0.27519676,118190.0,118180.0,0.87219326]
[1752986013838,0.38460283,118190.0,118180.0,0.87219326]
[1752986014339,0.40281234,118190.0,118180.0,0.87219326]
[1752986014540,0.40281234,118190.0,118180.0,0.616961]
[1752986014745,0.40281234,118190.0,118180.0,0.87219326]
[1752986015340,0.40281234,118190.0,118180.0,0.51139326]
[1752986015637,0.40281234,118190.0,118180.0,0.87219326]
[1752986015955,0.38460283,118190.0,118180.0,0.87219326]
[1752986016745,0.40281181,118190.0,118180.0,0.87219326]
[1752986017439,0.27519568,118190.0,118180.0,0.87219326]
[1752986017644,0.40281181,118190.0,118180.0,0.87219326]
[1752986017941,0.40281151,118190.0,118180.0,0.87219326]
[1752986018442,0.40281151,118190.0,118180.0,0.256161]
[1752986018636,0.40281151,118190.0,118180.0,0.70305226]
[1752986018945,0.76361151,118190.0,118180.0,0.05688]
[1752986019140,0.76361151,118190.0,118180.0,0.18449613]
[1752986020644,1.35937151,118190.0,118180.0,0.18449613]
[1752986021646,1.35937151,118190.0,118180.0,0.002]
[1752986021942,1.35937151,118190.0,118180.0,0.02565]
[1752986022639,0.76361151,118190.0,118180.0,0.16977613]
[1752986022845,1.35889151,118190.0,118180.0,0.16977613]
[1752986023047,1.35889151,118190.0,118180.0,0.04216]
[1752986023344,1.35889151,118190.0,118180.0,0.16977613]
[1752986024450,1.35889151,118190.0,118180.0,0.04216]
[1752986024645,1.35889151,118190.0,118180.0,0.16977613]
[1752986025847,1.35889151,118190.0,118180.0,0.04216]
[1752986026251,1.35889151,118190.0,118180.0,0.16977613]
[1752986027752,0.99809151,118190.0,118180.0,0.16977613]
[1752986028045,1.35889151,118190.0,118180.0,0.16977613]
[1752986028250,1.35889151,118190.0,118180.0,0.18568613]
[1752986032563,1.35889151,118190.0,118180.0,0.002]
[1752986032758,0.257061,118180.0,118170.0,0.08579502]
[1752986032955,0.257061,118180.0,118170.0,0.21341115]
[1752986032956,0.74547713,118180.0,118170.0,0.21341115]
[1752986033453,0.74547713,118180.0,118170.0,0.08805502]
[1752986033654,0.74547713,118180.0,118170.0,0.21567115]
[1752986034153,0.76368592,118180.0,118170.0,0.21567115]
[1752986034553,0.8310581,118180.0,118170.0,0.21767115]
[1752986035957,0.8310581,118180.0,118170.0,0.21967115]
[1752986038557,0.95867423,118180.0,118170.0,0.19448115]
[1752986039260,0.8310581,118180.0,118170.0,0.19448115]
[1752986039464,0.8310581,118180.0,118170.0,0.21700115]
[1752986039662,0.8310581,118180.0,118170.0,0.14053115]
[1752986040258,0.95867423,118180.0,118170.0,0.01291502]
[1752986040465,0.1871896,118160.0,118150.0,0.51136613]
[1752986040665,1.10524186,118160.0,118150.0,0.42160497]
[1752986040966,0.97762573,118160.0,118150.0,0.5492211]
[1752986041161,0.97762573,118160.0,118150.0,0.58050653]
[1752986041661,0.8500096,118160.0,118150.0,0.58050653]
[1752986041862,0.8500096,118160.0,118150.0,0.55070156]
[1752986041863,0.97762573,118160.0,118150.0,0.55070156]
[1752986042065,0.97762573,118160.0,118150.0,0.55370156]
[1752986042965,0.38470573,118160.0,118150.0,0.55370156]
[1752986043171,0.97742573,118160.0,118150.0,0.57848156]
[1752986043363,0.97742573,118160.0,118150.0,0.58248156]
[1752986044565,0.97742573,118160.0,118150.0,0.75166546]
[1752986044866,0.97742573,118160.0,118150.0,0.58248156]
[1752986045766,0.97742573,118160.0,118150.0,0.75166556]
[1752986047967,0.97742573,118160.0,118150.0,0.39086556]
[1752986048167,0.97742573,118160.0,118150.0,0.75166556]
[1752986048570,0.97742573,118160.0,118150.0,0.58248156]
[1752986048771,0.97742573,118160.0,118150.0,0.75166556]
[1752986049071,0.97742573,118160.0,118150.0,0.58248156]
[1752986050672,0.97634573,118160.0,118150.0,0.58248156]
[1752986050972,0.2570896,118160.0,118150.0,0.58248156]
[1752986051173,0.8486096,118160.0,118150.0,0.58248156]
[1752986051569,0.97622573,118160.0,118150.0,0.58248156]
[1752986055390,0.97622573,118160.0,118150.0,0.22168156]
[1752986056377,0.8486096,118160.0,118150.0,0.22168156]
[1752986056580,0.97622573,118160.0,118150.0,0.22168156]
[1752986056779,0.97622573,118160.0,118150.0,0.58248156]
[1752986056981,0.97622573,118160.0,118150.0,0.22168156]
[1752986057473,0.8486096,118160.0,118150.0,0.22168156]
[1752986057779,0.97622573,118160.0,118150.0,0.58248156]
[1752986058774,0.97622573,118160.0,118150.0,0.22168156]
[1752986059078,1.10384186,118160.0,118150.0,0.19690156]
[1752986059472,1.10384186,118160.0,118150.0,0.14295156]
[1752986059970,1.10384186,118160.0,118150.0,0.01533543]
[1752986060175,1.10384186,118160.0,118150.0,0.18192156]
[1752986060681,1.10384186,118160.0,118150.0,0.19717156]
[1752986061180,0.97622573,118160.0,118150.0,0.19717156]
[1752986063883,0.97622573,118160.0,118150.0,0.06955543]
[1752986064378,0.97622573,118160.0,118150.0,0.19717156]
[1752986064777,1.10384186,118160.0,118150.0,0.19717156]
[1752986064978,0.97622573,118160.0,118150.0,0.19717156]
[1752986066184,1.10384186,118160.0,118150.0,0.06955543]
[1752986066384,1.10384186,118160.0,118150.0,0.19717156]
[1752986067082,1.59225799,118160.0,118150.0,0.007]
[1752986067272,1.46464186,118160.0,118150.0,0.007]
[1752986068280,1.48284772,118160.0,118150.0,0.007]
[1752986083695,1.22761546,118160.0,118150.0,0.007]
[1752986083996,1.48284772,118160.0,118150.0,0.007]
[1752986086996,1.12204772,118160.0,118150.0,0.007]
[1752986087197,1.48284772,118160.0,118150.0,0.007]
[1752986087999,1.12204772,118160.0,118150.0,0.007]
[1752986088198,1.48284772,118160.0,118150.0,0.007]
[1752986092399,1.22761546,118160.0,118150.0,0.007]
[1752986092599,1.48284772,118160.0,118150.0,0.007]
[1752986095802,1.12204772,118160.0,118150.0,0.007]
[1752986096007,1.48284772,118160.0,118150.0,0.007]
[1752986100311,0.89132772,118160.0,118150.0,0.007]
[1752986100511,1.48292772,118160.0,118150.0,0.007]
[1752986105215,1.48228772,118160.0,118150.0,0.007]
[1752986117323,0.89132772,118160.0,118150.0,0.007]
[1752986117524,1.48296772,118160.0,118150.0,0.007]
[1752986119423,1.49803792,118160.0,118150.0,0.007]
[1752986120425,0.90639792,118160.0,118150.0,0.007]
[1752986120632,1.49747792,118160.0,118150.0,0.007]
[1752986121428,1.48240772,118160.0,118150.0,0.007]
[1752986122525,0.1691983,118140.0,118130.0,0.47026497]
[1752986122731,1.10352056,118140.0,118130.0,0.21051613]
[1752986122932,0.97590443,118140.0,118130.0,0.21051613]
[1752986123827,0.97590443,118140.0,118130.0,0.2713211]
[1752986124029,1.10452056,118140.0,118130.0,0.2773211]
[1752986124229,1.10452056,118140.0,118130.0,0.30540246]
[1752986124426,1.10452056,118140.0,118130.0,0.11698136]
[1752986124733,1.10452056,118140.0,118130.0,0.24459749]
[1752986125328,1.10452056,118140.0,118130.0,0.30940246]
[1752986126229,0.8492883,118140.0,118130.0,0.30940246]
[1752986126427,1.10452056,118140.0,118130.0,0.30940246]
[1752986128928,1.10452056,118140.0,118130.0,0.24859749]
[1752986129334,1.12273934,118140.0,118130.0,0.24859749]
[1752986130137,1.12273934,118140.0,118130.0,0.12098136]
[1752986130335,0.53181934,118140.0,118130.0,0.24859749]
[1752986130633,1.12213934,118140.0,118130.0,0.24859749]
[1752986131036,1.12213934,118140.0,118130.0,0.12098136]
[1752986131237,1.12213934,118140.0,118130.0,0.24859749]
[1752986131636,0.53181934,118140.0,118130.0,0.24859749]
[1752986131837,1.12205934,118140.0,118130.0,0.24859749]
[1752986133532,1.12205934,118140.0,118130.0,0.12098136]
[1752986134133,1.10384056,118140.0,118130.0,0.18178633]
[1752986134436,1.10384056,118140.0,118130.0,0.30940246]
[1752986135136,1.10384056,118140.0,118130.0,0.18178633]
[1752986136436,1.10384056,118140.0,118130.0,0.11501633]
[1752986136641,1.46464056,118140.0,118130.0,0.09888633]
[1752986137342,1.48285892,118140.0,118130.0,0.03808136]
[1752986138245,1.48285892,118140.0,118130.0,0.11804136]
[1752986138544,1.46464056,118140.0,118130.0,0.09379136]
[1752986138745,1.46464056,118140.0,118130.0,0.06192136]
[1752986139045,1.46464056,118140.0,118130.0,0.03808136]
[1752986142049,1.2094083,118140.0,118130.0,0.03808136]
[1752986142250,1.46464056,118140.0,118130.0,0.03808136]